fUSD/lending_fUSD_20240629
["ID","MTS","AMOUNT","RATE_DAILY","PERIOD"]
[330666206,1719697897966,-500.0,0.00014246,3]
[330666207,1719697897975,-597.33,0.00014246,3]
[330666208,1719697897985,-873.63,0.00014246,3]
[330666209,1719697897995,-918.03,0.00014246,3]
[330666210,1719697898004,-583.13119705,0.00014246,3]
[330666211,1719697898013,-500.0,0.00014246,3]
[330666212,1719697898023,-1884.45,0.00014246,3]
[330666213,1719697898033,-3902.11,0.00014246,3]
[330666214,1719697898042,-772.5,0.00014246,3]
[330666215,1719697898052,-1870.97,0.00014246,3]
[330666216,1719697898061,-2299.96,0.00014246,3]
[330666217,1719697898071,-2490.2,0.00014246,3]
[330666218,1719697898080,-1527.8,0.00014246,3]
[330666219,1719697898089,-846.22,0.00014246,3]
[330666220,1719697898099,-872.98,0.00014246,3]
[330666221,1719697898109,-500.0,0.00014246,3]
[330666222,1719697898118,-500.0,0.00014246,3]
[330666223,1719697898127,-500.0,0.00014246,3]
[330666224,1719697898137,-847.11,0.00014246,3]
[330666225,1719697898146,-604.3,0.00014246,3]
[330666226,1719697898156,-500.0,0.00014246,3]
[330666227,1719697898166,-500.0,0.00014246,3]
[330666228,1719697898175,-582.17,0.00014246,3]
[330666229,1719697898185,-3519.63,0.00014246,3]
[330666230,1719697898195,-500.0,0.00014246,3]
[330666231,1719697898204,-588.89,0.00014246,3]
[330666232,1719697898214,-500.0,0.00014246,3]
[330666233,1719697898224,-2599.7,0.00014246,3]
[330666234,1719697898234,-1281.86,0.00014246,3]
[330666235,1719697898244,-2658.38,0.00014246,3]
[330666236,1719697898253,-534.39,0.00014246,3]
[330666237,1719697898263,-1914.74,0.00014246,3]
[330666238,1719697898272,-500.0,0.00014246,3]
[330666239,1719697898282,-500.0,0.00014246,3]
[330666240,1719697898292,-9938.18,0.00014246,3]
[330666241,1719697898303,-749.22,0.00014246,3]
[330666242,1719697898312,-1236.84,0.00014246,3]
[330666243,1719697898322,-1427.54,0.00014246,3]
[330666244,1719697898332,-500.0,0.00014246,3]
[330666245,1719697898342,-2257.43,0.00014246,3]
[330666246,1719697898351,-1289.53,0.00014246,3]
[330666247,1719697898361,-500.0,0.00014246,3]
[330666248,1719697898371,-933.0,0.00014246,3]
[330666249,1719697898384,-500.0,0.00014246,3]
[330666250,1719697898396,-1659.26,0.00014246,3]
[330666251,1719697898406,-3107.67,0.00014246,3]
[330666252,1719697898415,-505.25,0.00014246,3]
[330666253,1719697898426,-500.0,0.00014246,3]
[330666254,1719697898435,-500.0,0.00014246,3]
[330666255,1719697898444,-3361.9,0.00014246,3]
[330666256,1719697898454,-1031.14,0.00014246,3]
[330666257,1719697898464,-500.0,0.00014246,3]
[330666258,1719697898473,-500.0,0.00014246,3]
[330666259,1719697898483,-2081.24,0.00014246,3]
[330666260,1719697898492,-22088.54,0.00014246,3]
[330666261,1719697898502,-500.0,0.00014246,3]
[330666262,1719697898511,-608.32,0.00014246,3]
[330666263,1719697898520,-801.09,0.00014246,3]
[330666264,1719697898530,-5023.6,0.00014246,3]
[330666265,1719697898539,-1971.0,0.00014246,3]
[330666266,1719697898550,-574.5,0.00014246,3]
[330666267,1719697898560,-1567.25,0.00014246,3]
[330666268,1719697898570,-1045.65,0.00014246,3]
[330666269,1719697898579,-794.3,0.00014246,3]
[330666270,1719697898589,-1134.29,0.00014246,3]
[330666271,1719697898598,-3016.9,0.00014246,3]
[330666272,1719697898609,-1963.59,0.00014246,3]
[330666273,1719697898619,-1149.35,0.00014246,3]
[330666274,1719697898628,-500.0,0.00014246,3]
[330666275,1719697898637,-7929.21,0.00014246,3]
[330666276,1719697898647,-7724.48,0.00014246,3]
[330666277,1719697898656,-500.0,0.00014246,3]
[330666278,1719697898666,-1201.55,0.00014246,3]
[330666279,1719697898675,-757.6,0.00014246,3]
[330666280,1719697898685,-1234.75,0.00014246,3]
[330666281,1719697898694,-1878.19,0.00014246,3]
[330666282,1719697898785,-500.0,0.00014246,3]
[330666283,1719697898795,-1529.23,0.00014246,3]
[330666284,1719697898807,-691.0,0.00014246,3]
[330666285,1719697898818,-232.41114342,0.00014246,3]
[330666286,1719697898828,-500.0,0.00014246,3]
[330666287,1719697898837,-500.0,0.00014246,3]
[330666288,1719697898847,-1264.25,0.00014246,3]
[330666289,1719697898857,-945.84,0.00014246,3]
[330666290,1719697898866,-500.0,0.00014246,3]
[330666291,1719697898875,-500.0,0.00014246,3]
[330666292,1719697898884,-500.0,0.00014246,3]
[330666293,1719697898893,-3153.71,0.00014246,3]
[330666294,1719697898902,-725.8,0.00014246,3]
[330666295,1719697898911,-844.67,0.00014246,3]
[330666296,1719697898920,-2776.06,0.00014246,3]
[330666297,1719697898930,-1177.78,0.00014246,3]
[330666298,1719697898939,-1599.88,0.00014246,3]
[330666299,1719697898947,-902.09,0.00014246,3]
[330666300,1719697898957,-1529.45,0.00014246,3]
[330666301,1719697898966,-531.92,0.00014246,3]
[330666302,1719697898976,-743.44,0.00014246,3]
[330666303,1719697898986,-574.2,0.00014246,3]
[330666304,1719697898997,-500.0,0.00014246,3]
[330666305,1719697899006,-1862.69,0.00014246,3]
[330666306,1719697899016,-2338.68,0.00014246,3]
[330666307,1719697899025,-538.54426715,0.00014246,3]
[330666308,1719697899035,-448.37461941,0.00014246,3]
[330666309,1719697899044,-561.21,0.00014246,3]
[330666310,1719697899055,-2684.36,0.00014246,3]
[330666311,1719697899064,-1258.1,0.00014246,3]
[330666312,1719697899074,-500.0,0.00014246,3]
[330666313,1719697899083,-865.21,0.00014246,3]
[330666314,1719697899092,-500.0,0.00014246,3]
[330666315,1719697899101,-1191.09,0.00014246,3]
[330666316,1719697899112,-500.0,0.00014246,3]
[330666317,1719697899122,-500.0,0.00014246,3]
[330666318,1719697899131,-513.97,0.00014246,3]
[330666319,1719697899140,-1259.89,0.00014246,3]
[330666320,1719697899150,-500.0,0.00014246,3]
[330666321,1719697899159,-500.0,0.00014246,3]
[330666322,1719697899169,-894.84,0.00014246,3]
[330666323,1719697899179,-500.0,0.00014246,3]
[330666324,1719697899188,-726.84,0.00014246,3]
[330666325,1719697899198,-804.55,0.00014246,3]
[330666326,1719697899207,-1767.86,0.00014246,3]
[330666327,1719697899217,-5502.95,0.00014246,3]
[330666328,1719697899226,-645.52,0.00014246,3]
[330666329,1719697899235,-500.0,0.00014246,3]
[330666330,1719697899244,-545.65,0.00014246,3]
[330666331,1719697899253,-528.33,0.00014246,3]
[330666332,1719697899262,-765.3,0.00014246,3]
[330666333,1719697899271,-500.0,0.00014246,3]
[330666334,1719697899281,-1285.81,0.00014246,3]
[330666335,1719697899290,-1267.3,0.00014246,3]
[330666336,1719697899299,-500.0,0.00014246,3]
[330666337,1719697899309,-825.44,0.00014246,3]
[330666338,1719697899318,-1866.94,0.00014246,3]
[330666339,1719697899327,-500.0,0.00014246,3]
[330666340,1719697899337,-250.0,0.00014246,3]
[330666341,1719697899346,-880.44,0.00014246,3]
[330666342,1719697899355,-623.61,0.00014246,3]
[330666343,1719697899366,-3596.23,0.00014246,3]
[330666344,1719697899376,-806.06,0.00014246,3]
[330666345,1719697899391,-588.77,0.00014246,3]
[330666346,1719697899401,-500.0,0.00014246,3]
[330666347,1719697899410,-500.0,0.00014246,3]
[330666348,1719697899419,-1703.73,0.00014246,3]
[330666349,1719697899428,-627.61,0.00014246,3]
[330666350,1719697899437,-500.0,0.00014246,3]
[330666351,1719697899447,-1606.7,0.00014246,3]
[330666352,1719697899456,-659.8,0.00014246,3]
[330666353,1719697899467,-500.0,0.00014246,3]
[330666354,1719697899477,-500.0,0.00014246,3]
[330666355,1719697899487,-6175.57,0.00014246,3]
[330666356,1719697899496,-1132.58,0.00014246,3]
[330666357,1719697899505,-500.0,0.00014246,3]
[330666358,1719697899514,-500.0,0.00014246,3]
[330666359,1719697899523,-500.0,0.00014246,3]
[330666360,1719697899532,-286.14221275,0.00014246,3]
[330666361,1719697899541,-1526.7,0.00014246,3]
[330666362,1719697899550,-4971.65,0.00014246,3]
[330666363,1719697899559,-500.0,0.00014246,3]
[330666364,1719697899569,-500.0,0.00014246,3]
[330666365,1719697899578,-990.4,0.00014246,3]
[330666366,1719697899588,-500.0,0.00014246,3]
[330666367,1719697899598,-650.44,0.00014246,3]
[330666368,1719697899607,-3939.36,0.00014246,3]
[330666369,1719697899622,-2098.21,0.00014246,3]
[330666370,1719697899633,-5595.59,0.00014246,3]
[330666371,1719697899643,-932.74,0.00014246,3]
[330666372,1719697899652,-568.9,0.00014246,3]
[330666373,1719697899661,-943.54,0.00014246,3]
[330666374,1719697899670,-1048.8,0.00014246,3]
[330666375,1719697899679,-659.06,0.00014246,3]
[330666376,1719697899688,-1357.28,0.00014246,3]
[330666377,1719697899697,-500.0,0.00014246,3]
[330666378,1719697899706,-4580.63,0.00014246,3]
[330666379,1719697899715,-4545.37,0.00014246,3]
[330666380,1719697899724,-544.92785892,0.00014246,3]
[330666381,1719697899734,-500.0,0.00014246,3]
[330666382,1719697899744,-4134.76,0.00014246,3]
[330666383,1719697899753,-500.0,0.00014246,3]
[330666384,1719697899763,-824.84,0.00014246,3]
[330666385,1719697899773,-4545.37,0.00014246,3]
[330666386,1719697899783,-824.25,0.00014246,3]
[330666387,1719697899792,-1343.98,0.00014246,3]
[330666388,1719697899801,-1024.35,0.00014246,3]
[330666389,1719697899811,-1876.11,0.00014246,3]
[330666390,1719697899821,-1236.5,0.00014246,3]
[330666391,1719697899831,-3087.82,0.00014246,3]
[330666392,1719697899840,-649.92,0.00014246,3]
[330666393,1719697899850,-3079.7,0.00014246,3]
[330666394,1719697899859,-1991.15,0.00014246,3]
[330666395,1719697899870,-500.0,0.00014246,3]
[330666396,1719697899879,-527.58,0.00014246,3]
[330666397,1719697899889,-936.25,0.00014246,3]
[330666398,1719697899899,-1350.58,0.00014246,3]
[330666399,1719697899908,-8026.11,0.00014246,3]
[330666400,1719697899917,-1069.06,0.00014246,3]
[330666401,1719697899927,-4296.17,0.00014246,3]
[330666402,1719697899936,-5643.12,0.00014246,3]
[330666403,1719697899945,-3276.15,0.00014246,3]
[330666404,1719697899955,-539.99280959,0.00014246,3]
[330666405,1719697899964,-500.0,0.00014246,3]
[330666406,1719697899973,-274.94262099,0.00014246,3]
[330666407,1719697899982,-1170.29,0.00014246,3]
[330666408,1719697899991,-500.0,0.00014246,3]
[330666409,1719697900001,-893.86,0.00014246,3]
[330666410,1719697900011,-1176.78,0.00014246,3]
[330666411,1719697900020,-518.31,0.00014246,3]
[330666412,1719697900029,-500.0,0.00014246,3]
[330666413,1719697900038,-1185.67,0.00014246,3]
[330666414,1719697900047,-547.81,0.00014246,3]
[330666415,1719697900057,-2603.39,0.00014246,3]
[330666416,1719697900067,-500.0,0.00014246,3]
[330666417,1719697900076,-500.0,0.00014246,3]
[330666418,1719697900085,-500.0,0.00014246,3]
[330666419,1719697900094,-1561.26,0.00014246,3]
[330666420,1719697900103,-2326.63,0.00014246,3]
[330666421,1719697900114,-3268.24,0.00014246,3]
[330666422,1719697900123,-500.0,0.00014246,3]
[330666423,1719697900132,-500.0,0.00014246,3]
[330666424,1719697900142,-500.0,0.00014246,3]
[330666425,1719697900151,-3892.68,0.00014246,3]
[330666426,1719697900160,-608.94,0.00014246,3]
[330666427,1719697900169,-500.0,0.00014246,3]
[330666428,1719697900178,-1365.85,0.00014246,3]
[330666429,1719697900187,-1072.42,0.00014246,3]
[330666430,1719697900196,-619.13,0.00014246,3]
[330666431,1719697900206,-651.51,0.00014246,3]
[330666432,1719697900215,-1596.85,0.00014246,3]
[330666433,1719697900224,-500.0,0.00014246,3]
[330666434,1719697900234,-1324.36,0.00014246,3]
[330666435,1719697900243,-500.0,0.00014246,3]
[330666436,1719697900252,-500.0,0.00014246,3]
[330666437,1719697900261,-500.0,0.00014246,3]
[330666438,1719697900270,-1610.36,0.00014246,3]
[330666439,1719697900279,-1094.74,0.00014246,3]
[330666440,1719697900288,-5315.74,0.00014246,3]
[330666441,1719697900298,-500.0,0.00014246,3]
[330666442,1719697900307,-1796.48,0.00014246,3]
[330666443,1719697900317,-500.0,0.00014246,3]
[330666444,1719697900326,-2379.59,0.00014246,3]
[330666445,1719697900335,-966.95,0.00014246,3]
[330666446,1719697900344,-500.0,0.00014246,3]
[330666447,1719697900353,-6591.7,0.00014246,3]
[330666448,1719697900364,-500.0,0.00014246,3]
[330666449,1719697900373,-2662.28,0.00014246,3]
[330666450,1719697900386,-831.59,0.00014246,3]
[330666451,1719697900395,-630.2,0.00014246,3]
[330666452,1719697900404,-914.37,0.00014246,3]
[330666453,1719697900414,-529.01,0.00014246,3]
[330666454,1719697900423,-500.0,0.00014246,3]
[330666455,1719697900431,-500.0,0.00014246,3]
[330666456,1719697900440,-1402.23,0.00014246,3]
[330666457,1719697900450,-1196.92,0.00014246,3]
[330666458,1719697900460,-500.0,0.00014246,3]
[330666459,1719697900471,-500.0,0.00014246,3]
[330666460,1719697900480,-1448.17,0.00014246,3]
[330666461,1719697900489,-1411.69,0.00014246,3]
[330666462,1719697900501,-500.0,0.00014246,3]
[330666463,1719697900510,-2109.02,0.00014246,3]
[330666464,1719697900520,-2625.47,0.00014246,3]
[330666465,1719697900530,-890.02,0.00014246,3]
[330666466,1719697900540,-2903.57,0.00014246,3]
[330666467,1719697900549,-4050.51,0.00014246,3]
[330666468,1719697900559,-679.62,0.00014246,3]
[330666469,1719697900568,-500.0,0.00014246,3]
[330666470,1719697900578,-2762.0,0.00014246,3]
[330666471,1719697900587,-500.0,0.00014246,3]
[330666472,1719697900596,-500.0,0.00014246,3]
[330666473,1719697900606,-1721.06,0.00014246,3]
[330666474,1719697900616,-2217.0,0.00014246,3]
[330666475,1719697900626,-677.84,0.00014246,3]
[330666476,1719697900635,-862.21,0.00014246,3]
[330666477,1719697900645,-3787.36,0.00014246,3]
[330666478,1719697900654,-1414.56,0.00014246,3]
[330666479,1719697900664,-1050.13,0.00014246,3]
[330666480,1719697900673,-858.84,0.00014246,3]
[330666481,1719697900683,-2169.01,0.00014246,3]
[330666482,1719697900692,-500.0,0.00014246,3]
[330666483,1719697900702,-2110.08,0.00014246,3]
[330666484,1719697900711,-2715.14,0.00014246,3]
[330666485,1719697900720,-2046.76,0.00014246,3]
[330666486,1719697900730,-1167.19,0.00014246,3]
[330666487,1719697900739,-500.0,0.00014246,3]
[330666488,1719697900748,-2443.62,0.00014246,3]
[330666489,1719697900758,-1971.4,0.00014246,3]
[330666490,1719697900767,-944.41,0.00014246,3]
[330666491,1719697900776,-557.42,0.00014246,3]
[330666492,1719697900785,-3188.54,0.00014246,3]
[330666493,1719697900795,-1082.52,0.00014246,3]
[330666494,1719697900804,-500.0,0.00014246,3]
[330666495,1719697900814,-500.0,0.00014246,3]
[330666496,1719697900823,-500.0,0.00014246,3]
[330666497,1719697900832,-538.92,0.00014246,3]
[330666498,1719697900841,-3460.61,0.00014246,3]
[330666499,1719697900851,-6017.33,0.00014246,3]
[330666500,1719697900860,-1164.17,0.00014246,3]
[330666501,1719697900870,-500.0,0.00014246,3]
[330666502,1719697900879,-702.28,0.00014246,3]
[330666503,1719697900889,-6371.13,0.00014246,3]
[330666504,1719697900898,-1232.85,0.00014246,3]
[330666505,1719697900907,-1495.82,0.00014246,3]
[330666506,1719697900917,-633.10532234,0.00014246,3]
[330666507,1719697900926,-1005.1,0.00014246,3]
[330666508,1719697900935,-545.13,0.00014246,3]
[330666509,1719697900945,-996.78,0.00014246,3]
[330666510,1719697900954,-736.29,0.00014246,3]
[330666511,1719697900963,-3151.93,0.00014246,3]
[330666512,1719697900973,-239.54811607,0.0001425,2]
[330666513,1719697900982,-150.0,0.0001425,2]
[330666514,1719697900992,-382.20092064,0.00014255,2]
[330666515,1719697901001,-179.97604362,0.00014256,2]
[330666516,1719697901010,-1131.57698668,0.00014256,2]
[330666517,1719697901019,-14953.2948686,0.00014306,2]
[330666518,1719697901028,-2438.96933179,0.00014321,2]
[330666519,1719697901038,-16740.69557941,0.00014321,2]
[330666520,1719697901047,-1000.0,0.00014334,2]
[330666521,1719697901058,-2074.03,0.00014356,3]
[330666522,1719697901067,-6680.53,0.00014356,3]
[330666523,1719697901076,-3955.67,0.00014356,3]
[330666524,1719697901085,-2829.49,0.00014356,3]
[330666525,1719697901095,-2444.54,0.00014356,3]
[330666526,1719697901104,-1698.62,0.00014356,3]
[330666527,1719697901114,-1375.34,0.00014356,3]
[330666528,1719697901124,-3508.71,0.00014356,3]
[330666529,1719697901133,-3766.12,0.00014356,3]
[330666530,1719697901142,-4127.7,0.00014356,3]
[330666531,1719697901151,-2752.9,0.00014356,3]
[330666532,1719697901160,-3856.66,0.00014356,3]
[330666533,1719697901169,-2718.08,0.00014356,3]
[330666534,1719697901179,-4618.86,0.00014356,3]
[330666535,1719697901188,-8596.57,0.00014356,3]
[330666536,1719697901197,-9388.9,0.00014356,3]
[330666537,1719697901207,-2782.53,0.00014356,3]
[330666538,1719697901216,-3679.01,0.00014356,3]
[330666539,1719697901226,-10798.79,0.00014356,3]
[330666540,1719697901235,-1708.01,0.00014356,3]
[330666541,1719697901244,-693.37,0.00014356,3]
[330666542,1719697901254,-500.0,0.00014356,3]
[330666543,1719697901263,-2836.27,0.00014356,3]
[330666544,1719697901272,-164.86704726,0.00014356,3]
[330666545,1719697901281,-876.04,0.00014356,3]
[330666546,1719697901290,-520.9,0.00014356,3]
[330666547,1719697901301,-500.0,0.00014356,3]
[330666548,1719697901310,-525.4,0.00014356,3]
[330666549,1719697901319,-500.0,0.00014356,3]
[330666550,1719697901328,-500.0,0.00014356,3]
[330666551,1719697901339,-2888.38,0.00014356,3]
[330666552,1719697901348,-500.0,0.00014356,3]
[330666553,1719697901357,-799.65,0.00014356,3]
[330666554,1719697901369,-1213.94,0.00014356,3]
[330666555,1719697901380,-500.0,0.00014356,3]
[330666556,1719697901390,-500.0,0.00014356,3]
[330666557,1719697901399,-913.57,0.00014356,3]
[330666558,1719697901408,-500.0,0.00014356,3]
[330666559,1719697901417,-500.0,0.00014356,3]
[330666560,1719697901425,-521.95,0.00014356,3]
[330666561,1719697901434,-500.0,0.00014356,3]
[330666562,1719697901443,-1326.28,0.00014356,3]
[330666563,1719697901452,-992.84,0.00014356,3]
[330666564,1719697901464,-712.38,0.00014356,3]
[330666565,1719697901474,-1192.62,0.00014356,3]
[330666566,1719697901483,-685.54,0.00014356,3]
[330666567,1719697901492,-500.0,0.00014356,3]
[330666568,1719697901501,-1171.75,0.00014356,3]
[330666569,1719697901512,-913.12,0.00014356,3]
[330666570,1719697901521,-500.0,0.00014356,3]
[330666571,1719697901530,-500.0,0.00014356,3]
[330666572,1719697901539,-1113.91,0.00014356,3]
[330666573,1719697901548,-500.0,0.00014356,3]
[330666574,1719697901557,-514.5,0.00014356,3]
[330666575,1719697901566,-500.0,0.00014356,3]
[330666576,1719697901575,-500.0,0.00014356,3]
[330666577,1719697901585,-500.0,0.00014356,3]
[330666578,1719697901595,-577.51,0.00014356,3]
[330666579,1719697901604,-500.0,0.00014356,3]
[330666580,1719697901613,-500.0,0.00014356,3]
[330666581,1719697901622,-500.0,0.00014356,3]
[330666582,1719697901631,-2797.19,0.00014356,3]
[330666583,1719697901640,-710.19,0.00014356,3]
[330666584,1719697901649,-500.0,0.00014356,3]
[330666585,1719697901659,-526.63,0.00014356,3]
[330666586,1719697901670,-500.0,0.00014356,3]
[330666587,1719697901679,-500.0,0.00014356,3]
[330666588,1719697901688,-500.0,0.00014356,3]
[330666589,1719697901697,-745.32,0.00014356,3]
[330666590,1719697901706,-500.0,0.00014356,3]
[330666591,1719697901716,-535.82,0.00014356,3]
[330666592,1719697901725,-565.9038784,0.00014356,3]
[330666593,1719697901735,-618.16,0.00014356,3]
[330666594,1719697901744,-520.19,0.00014356,3]
[330666595,1719697901755,-526.68,0.00014356,3]
[330666596,1719697901765,-500.0,0.00014356,3]
[330666597,1719697901775,-845.79,0.00014356,3]
[330666598,1719697901784,-558.47,0.00014356,3]
[330666599,1719697901794,-353.14888916,0.00014356,3]
[330666600,1719697901803,-590.44,0.00014356,3]
[330666601,1719697901812,-500.0,0.00014356,3]
[330666602,1719697901822,-500.0,0.00014356,3]
[330666603,1719697901832,-1057.71,0.00014356,3]
[330666604,1719697901842,-870.06,0.00014356,3]
[330666605,1719697901853,-500.0,0.00014356,3]
[330666606,1719697901864,-1030.74,0.00014356,3]
[330666607,1719697901872,-500.0,0.00014356,3]
[330666608,1719697901882,-2288.97,0.00014356,3]
[330666609,1719697901891,-588.45,0.00014356,3]
[330666610,1719697901900,-500.0,0.00014356,3]
[330666611,1719697901910,-513.85,0.00014356,3]
[330666612,1719697901919,-500.0,0.00014356,3]
[330666613,1719697901928,-836.96,0.00014356,3]
[330666614,1719697901938,-1133.19,0.00014356,3]
[330666615,1719697901947,-500.0,0.00014356,3]
[330666616,1719697901956,-500.0,0.00014356,3]
[330666617,1719697901965,-500.0,0.00014356,3]
[330666618,1719697901975,-565.54,0.00014356,3]
[330666619,1719697901984,-500.0,0.00014356,3]
[330666620,1719697901993,-571.48,0.00014356,3]
[330666621,1719697902002,-1079.16,0.00014356,3]
[330666622,1719697902012,-2913.86,0.00014356,3]
[330666623,1719697902021,-636.55,0.00014356,3]
[330666624,1719697902030,-500.0,0.00014356,3]
[330666625,1719697902039,-727.69,0.00014356,3]
[330666626,1719697902048,-500.0,0.00014356,3]
[330666627,1719697902056,-862.68,0.00014356,3]
[330666628,1719697902066,-917.7,0.00014356,3]
[330666629,1719697902074,-601.18,0.00014356,3]
[330666630,1719697902083,-500.0,0.00014356,3]
[330666631,1719697902093,-3115.39,0.00014356,3]
[330666632,1719697902102,-500.0,0.00014356,3]
[330666633,1719697902110,-500.0,0.00014356,3]
[330666634,1719697902121,-156.1034636,0.00014356,3]
[330666635,1719697902130,-500.0,0.00014356,3]
[330666636,1719697902138,-854.03,0.00014356,3]
[330666637,1719697902147,-500.0,0.00014356,3]
[330666638,1719697902156,-1402.94,0.00014356,3]
[330666639,1719697902165,-500.0,0.00014356,3]
[330666640,1719697902174,-500.0,0.00014356,3]
[330666641,1719697902184,-1805.2,0.00014356,3]
[330666642,1719697902193,-951.34,0.00014356,3]
[330666643,1719697902202,-735.2,0.00014356,3]
[330666644,1719697902213,-506.75,0.00014356,3]
[330666645,1719697902221,-525.86,0.00014356,3]
[330666646,1719697902230,-500.0,0.00014356,3]
[330666647,1719697902240,-1963.77,0.00014356,3]
[330666648,1719697902249,-500.0,0.00014356,3]
[330666649,1719697902258,-615.08,0.00014356,3]
[330666650,1719697902267,-561.52,0.00014356,3]
[330666651,1719697902277,-1012.0,0.00014356,3]
[330666652,1719697902286,-500.0,0.00014356,3]
[330666653,1719697902295,-1036.72,0.00014356,3]
[330666654,1719697902304,-500.0,0.00014356,3]
[330666655,1719697902313,-770.04,0.00014356,3]
[330666656,1719697902322,-948.83,0.00014356,3]
[330666657,1719697902331,-500.0,0.00014356,3]
[330666658,1719697902340,-500.0,0.00014356,3]
[330666659,1719697902349,-810.82,0.00014356,3]
[330666660,1719697902360,-500.0,0.00014356,3]
[330666661,1719697902371,-1251.58,0.00014356,3]
[330666662,1719697902381,-551.6,0.00014356,3]
[330666663,1719697902393,-1029.44,0.00014356,3]
[330666664,1719697902402,-1033.08,0.00014356,3]
[330666665,1719697902411,-500.0,0.00014356,3]
[330666666,1719697902420,-615.75,0.00014356,3]
[330666667,1719697902430,-500.0,0.00014356,3]
[330666668,1719697902439,-800.76,0.00014356,3]
[330666669,1719697902448,-500.0,0.00014356,3]
[330666670,1719697902457,-500.0,0.00014356,3]
[330666671,1719697902469,-181.72512612,0.00014356,3]
[330666672,1719697902479,-500.0,0.00014356,3]
[330666673,1719697902489,-1191.78,0.00014356,3]
[330666674,1719697902498,-500.0,0.00014356,3]
[330666675,1719697902507,-500.0,0.00014356,3]
[330666676,1719697902517,-1070.15,0.00014356,3]
[330666677,1719697902526,-1330.56,0.00014356,3]
[330666678,1719697902537,-500.0,0.00014356,3]
[330666679,1719697902547,-500.0,0.00014356,3]
[330666680,1719697902558,-500.0,0.00014356,3]
[330666681,1719697902568,-500.0,0.00014356,3]
[330666682,1719697902577,-1210.18,0.00014356,3]
[330666683,1719697902588,-652.67,0.00014356,3]
[330666684,1719697902597,-500.0,0.00014356,3]
[330666685,1719697902607,-528.49,0.00014356,3]
[330666686,1719697902617,-593.77,0.00014356,3]
[330666687,1719697902627,-567.39,0.00014356,3]
[330666688,1719697902639,-1328.61,0.00014356,3]
[330666689,1719697902649,-1523.82,0.00014356,3]
[330666690,1719697902660,-453.93570309,0.00014356,3]
[330666691,1719697902669,-812.86,0.00014356,3]
[330666692,1719697902679,-500.0,0.00014356,3]
[330666693,1719697902688,-708.61,0.00014356,3]
[330666694,1719697902697,-734.19,0.00014356,3]
[330666695,1719697902707,-1932.72,0.00014356,3]
[330666696,1719697902716,-557.64,0.00014356,3]
[330666697,1719697902725,-1643.79,0.00014356,3]
[330666698,1719697902735,-1505.88,0.00014356,3]
[330666699,1719697902744,-664.71,0.00014356,3]
[330666700,1719697902754,-993.46,0.00014356,3]
[330666701,1719697902763,-1870.08,0.00014356,3]
[330666702,1719697902772,-833.32,0.00014356,3]
[330666703,1719697902782,-2689.06,0.00014356,3]
[330666704,1719697902791,-958.0,0.00014356,3]
[330666705,1719697902800,-500.0,0.00014356,3]